{"text_format":"2","workbook":"xlsx","n_sheets":1,"sheets":["Additional File 2"],"not_rendered":{"charts":0,"images":0,"macros":0,"external_links":0,"defined_names":0,"comments":0,"pivot_tables":0},"unopened":[],"bounds":{"document_bytes":16777216,"sheet_cells":100000,"run_cost":"one","rows_first":2000,"rows_last":500,"rows_between":2000,"halvings":0,"cell_chars":16384,"cell_head_chars":4096},"cells_cut":0,"cells_raw":0,"read":"whole","date_system":"1900"}

{"sheet":"Additional File 2","index":0,"n_rows":91,"n_cols":11,"rows_kept":91,"cut":false,"hidden":false,"merged":[[0,0,0,9]]}
["Additional File 2: List of Pseudomonas syringae strains selected for phylogenetic analysis"]
[]
["Strain","Identification at reception","Substrate","Substrate category ","Phylogroup","NCBI genome accession number","Host class","cts-based phylogenetic analysis","MLST-based phylogenetic analysis","core and pan-genome analysis","ANI analysis"]
[1845.0,"P. syringae","Helianthus annuus","Plant","PG 02",null,"dicot",{"$f":"\"+\"","v":"+"},"+","+","+"]
[2507.0,"P. syringae","Triticum aestivum","Plant","PG 02",null,"monocot",{"$f":"\"+\"","v":"+"},"+","+","+"]
["B64","P. syringae","Triticum aestivum","Plant","PG 02","NZ_CM001763.1","monocot",{"$f":"\"+\"","v":"+"},"+","+","+"]
["SM","P. syringae","Triticum aestivum","Plant","PG 02","NZ_CM001986.1","monocot",{"$f":"\"+\"","v":"+"},"+","+","+"]
["BRIP34876","P. syringae","Triticum aestivum","Plant","PG 02","AMXK00000000","monocot",{"$f":"\"+\"","v":"+"},"+","+","+"]
["BRIP34881","P. syringae","Secale cereale","Plant","PG 02","AMXL00000000","monocot",{"$f":"\"+\"","v":"+"},"+","+","+"]
["BRIP39023","P. syringae","Secale cereale","Plant","PG 02","AMZX00000000","monocot",{"$f":"\"+\"","v":"+"},"+","+","+"]
["CRAFRU12","P. syringae","Corylus avellana","Plant","PG 02","ATSV00000000","dicot",{"$f":"\"+\"","v":"+"},"+","+","-"]
["DSM50252","P. syringae","Beta vulgaris","Plant","PG 02","AEAN00000000","dicot",{"$f":"\"+\"","v":"+"},"+","+","-"]
["HS191","P. syringae","Panicum miliaceum","Plant","PG 02","Z_CP006256.1","monocot",{"$f":"\"+\"","v":"+"},"+","+","-"]
["B301D","P. syringae","Pyrus communis","Plant","PG 02","CP005969.1","dicot",{"$f":"\"+\"","v":"+"},"+","+","-"]
["PP1","P. syringae","Pisum sativum","Plant","PG 02","AUZR00000000","dicot",{"$f":"\"+\"","v":"+"},"+","+","-"]
["CC1458","P. syringae","Primula sp","Plant","PG 02b","AVEN00000000","dicot",{"$f":"\"+\"","v":"+"},"+","+","-"]
["CC440","P. syringae","Cucumis melo","Plant","PG 02b","AVEC00000000","dicot",{"$f":"\"+\"","v":"+"},"+","+","-"]
["CC94","P. syringae","Cucumis melo","Plant","PG 02d","AVEA00000000","dicot",{"$f":"\"+\"","v":"+"},"+","+","-"]
["B728a","P. syringae pv. syringae","Phaseolus vulgaris","Plant","PG 02d","CP000075.1","dicot",{"$f":"\"+\"","v":"+"},"+","+","+"]
["CC457","P. syringae","Cucumis melo","Plant","PG 02b","AVEB00000000","dicot",{"$f":"\"+\"","v":"+"},"+","+","-"]
["ISPave013","P. syringae pv. avellanea ","Corylus avellana","Plant","PG 02b","NZ_AKCJ00000000","dicot",{"$f":"\"+\"","v":"+"},"+","+","+"]
["ISPave037","P. syringae pv. avellanea","Corylus avellana","Plant","PG 02b","AKCK00000000","dicot",{"$f":"\"+\"","v":"+"},"+","+","+"]
["M301072","P. syringae pv. Japonica","Hordeum vulgare","Plant","PG 02b","AEAH00000000","monocot",{"$f":"\"+\"","v":"+"},"+","+","-"]
["DC3000","P. syringae pv. tomato","Solanum lycopersicum","Plant","PG 01a","NC_004578","dicot",{"$f":"\"+\"","v":"+"},"+","-",{"$f":"\"+\"","v":"+"}]
["ICMP18804","P. syringae","Actinidia chinensis","Plant","PG 02","ANJE00000000","dicot",{"$f":"\"+\"","v":"+"},"-","-","-"]
["ICMP18807","P. syringae","Actinidia chinensis","Plant","PG 02","AOKG00000000","dicot","+","-","-","-"]
["ICMP3923","P. syringae","Actinidia chinensis","Plant","PG 02","AOJV00000000","dicot","+","-","-","-"]
["ICMP9617","P. syringae","Corylus avellana","Plant","PG 02","AOKP00000000","dicot","+","-","-","-"]
["LMG5095","P. syringae",null,null,"PG 02","JFZI00000000",null,"+","-","-","-"]
["CC1586","P. syringae","Lake water","Fresh water & epilithic biofilm","PG 10c",null,null,"+","-","-","-"]
["BS0002","P. viridiflava","Actinidia deliciosa","Plant","PG 07a",null,"dicot","+","-","-","-"]
["UB246","P. syringae","Stream water","Fresh water & epilithic biofilm","PG 13a","AVEQ00000000",null,"+","-","-","-"]
["CFBP2067","P. syringae pv. helianthi ","Helianthus annuus","Plant","PG 06",null,"dicot","+","-","-","-"]
["CC1582","P. syringae","Epilithic biofilm","Fresh water & epilithic biofilm","PG 07a","AVDW00000000",null,"+","-","-","-"]
["CC1583","P. syringae","Epilithic biofilm","Fresh water & epilithic biofilm","PG 10a","AVEF00000000",null,"+","-","-","-"]
["PSy642","P. syringae pv. syringae","Unidentified plant on Virginia campus","Plant","PG 02c",null,null,"+","-","-","-"]
["MAFF301020","P. syringae pv. mori ","Morus alba","Plant","PG 03","AEAG00000000","dicot","+","-","-","-"]
["CMO0085","P. syringae","Rain","Precipitations","PG 08",null,null,"+","-","-","-"]
["CMO0110","P. syringae","Rain","Precipitations","PG 07a",null,null,"+","-","-","-"]
["CCE0915","P. syringae","Litter","Litter","PG 13a",null,null,"+","-","-","-"]
["LYR0002","P. syringae","Rain","Precipitations","PG 03",null,null,"+","-","-","-"]
["1_6","P. syringae pv. oryzae ","Oryza sativa","Plant","PG 04","ABZR00000000","monocot","+","-","-","-"]
["TA043","P. syringae","Primula sp","Plant","PG 07a","AVDV00000000","dicot","+","-","-","-"]
["CMW0020","P. syringae","River water","Fresh water & epilithic biofilm","PG 09c",null,null,"+","-","-","-"]
["SZ0045","P. syringae","Stream water","Fresh water & epilithic biofilm","PG 02c",null,null,"+","-","-","-"]
["CCE0103","P. syringae","Alpine meadow","Snowpack","PG 10a",null,null,"+","-","-","-"]
["CLA0302","P. syringae","Litter","Litter","PG 13b",null,null,"+","-","-","-"]
["CC1630","P. syringae","Onobrychis viciifolia","Plant","PG 01a","AVED00000000","dicot","+","-","-","-"]
["CC1470","P. syringae","Stream water","Fresh water & epilithic biofilm","PG 02d",null,null,"+","-","-","-"]
["CCE0100","P. syringae","Alpine meadow","Snowpack","PG 10d",null,null,"+","-","-","-"]
["CC1557","P. syringae","Alpine meadow","Snowpack","PG 10b","AVEH00000000",null,"+","-","-","-"]
["CC1559","P. syringae","Alpine meadow","Snowpack","PG 01b","AVEG00000000",null,"+","-","-","-"]
["TA0002","P. syringae","Stream water","Fresh water & epilithic biofilm","PG 07a",null,null,"+","-","-","-"]
["T1","P. syringae pv. tomato","Solanum lycopersicum","Plant","PG 01a",null,"dicot","+","-","-","-"]
["TA0006","P. syringae","Stream water","Fresh water & epilithic biofilm","PG 09b",null,null,"+","-","-","-"]
["SZ0030","P. syringae","Stream water","Fresh water & epilithic biofilm","PG 02c",null,null,"+","-","-","-"]
[508.0,"P. syringae","Malus pumila, leaf","Plant","PG 02c",null,"dicot?","+","-","-","-"]
["PavBPIC631","P. avellanea Type strain","Corylus avellana","Plant","PG 01b",null,"dicot","+","-","-","-"]
["CCV0213","P. syringae","Stream water","Fresh water & epilithic biofilm","PG 10g",null,null,"+","-","-","-"]
["MAFF301315","P. syringae pv. lachrymans","Cucumis sativus","Plant","PG 03","AEAF00000000",null,"+","-","-","-"]
["PsyCit7","P. syringae pv. syringae","Plant in Tech campus","Plant","PG 02a","AEAJ00000000",null,"+","-","-","-"]
["CC1416","P. syringae","Epilithic biofilm","Fresh water & epilithic biofilm","PG 01b","AVEP00000000",null,"+","-","-","-"]
["CC1417","P. syringae","Epilithic biofilm","Fresh water & epilithic biofilm","PG 09a","AVEO00000000",null,"+","-","-","-"]
["USA0102","P. syringae","Stream water","Fresh water & epilithic biofilm","PG 10a",null,null,"+","-","-","-"]
["CCV0567","P. syringae","Litter","Litter","PG 13b",null,null,"+","-","-","-"]
[83.1,"P. cichorii",null,"Plant","PG 11",null,null,"+","-","-","-"]
["USA0032","P. syringae","Stream water","Fresh water & epilithic biofilm","PG 10e",null,null,"+","-","-","-"]
["CFBP4407","P. cichorii ","Lactuca sativa","Plant","PG 11",null,"dicot","+","-","-","-"]
["MAFF302941","P. syringae pv. miricae","Myrica rubra","Plant","PG 03",null,"dicot","+","-","-","-"]
["PmaES4326","P. cannabina pv. Asilensis","Raphanus sativus","Plant","PG 05","AEAK00000000",null,"+","-","-","-"]
["GAW0203","P. syringae","Irrigation canal water","Fresh water & epilithic biofilm","PG 08",null,null,"+","-","-","-"]
["USA0035","P. syringae","Stream water","Fresh water & epilithic biofilm","PG 02e",null,null,"+","-","-","-"]
["CSZ0761","P. syringae","Alpine meadow","Snowpack","PG 01b",null,null,"+","-","-","-"]
["CC1629","P. syringae","Avena sativa","Plant","PG 04","AVEE00000000","dicot","+","-","-","-"]
["TA0019","P. syringae","Stream water","Fresh water & epilithic biofilm","PG 10b",null,null,"+","-","-","-"]
["M302091","P. syringae pv. actinidae ","Actinidia deliciosa","Plant","PG 01b","AEAL00000000","dicot","+","-","-","-"]
["CC0301","P. syringae","Cucumis melo","Plant","PG 02d",null,"dicot","+","-","-","-"]
["TA0003","P. syringae","Stream water","Fresh water & epilithic biofilm","PG 10b",null,null,"+","-","-","-"]
["GAW0112","P. syringae","Irrigation canal water","Fresh water & epilithic biofilm","PG 12a",null,null,"+","-","-","-"]
["GAW0113","P. syringae","Irrigation canal water","Fresh water & epilithic biofilm","PG 12b",null,null,"+","-","-","-"]
["H5E1","P. syringae pv. Pisi","Pisum sativum","Plant","PG 02b",null,"dicot","+","-","-","-"]
["CC1524","P. syringae","Stream water","Fresh water & epilithic biofilm","PG 09a","AVEK00000000",null,"+","-","-","-"]
["CC1513","P. syringae","Hutchinsia alpina","Plant","PG 04","AVEL00000000","dicot","+","-","-","-"]
["CC1427","P. syringae","Epilithic biofilm","Fresh water & epilithic biofilm","PG 01b",null,null,"+","-","-","-"]
["CLA0275","P. syringae","Litter","Litter","PG 10b",null,null,"+","-","-","-"]
["PA459","P. syringae pv. actinidiae","Actinidia chinensis","Plant","PG 01b","http://pacu.facom.ufms.br/blast_kiwi/blast.html","dicot","+","-","-","-"]
["CCE0153","P. syringae","Stream water","Fresh water & epilithic biofilm","PG 10f",null,null,"+","-","-","-"]
["CC1532","P. syringae","Lake water","Fresh water & epilithic biofilm","PG 09a",null,null,"+","-","-","-"]
["1448A","P. syringae pv. Phaseolicola","Ethiopia","Phaseolus vulgaris","Pph1448A","http://genome.ppws.vt.edu/cgi-bin/MLST/home.pl",null,"+","-","-",{"$f":"\"+\"","v":"+"}]
["FMU107","P. viridiflava ","Brassica rapa subspecies pekinensis","Plant","PG 07b",null,"dicot","+","-","-","-"]
["6B4","P. rhizosphaerae","Water phase of Cloud","Fresh water & epilithic biofilm","P. rhizosphaerae",null,null,"+","-","-","-"]